fUST/lending_fUST_20250323
["ID","MTS","AMOUNT","RATE_DAILY","PERIOD"]
[356571042,1742695646974,-515.99787011,0.00021841,2]
[356571043,1742695646996,-785.66803801,0.00021841,2]
[356571044,1742695647018,-500.0,0.00021841,2]
[356571045,1742695647038,-785.66803801,0.00021841,2]
[356571046,1742695647059,-500.0,0.00021841,2]
[356571047,1742695647081,-785.66803801,0.00021841,2]
[356571048,1742695647102,-500.0,0.00021841,2]
[356571049,1742695647123,-785.66803801,0.00021841,2]
[356571050,1742695647143,-785.66803801,0.00021841,2]
[356571051,1742695647164,-785.66803801,0.00021841,2]
[356571052,1742695647185,-785.66803801,0.00021841,2]
[356571053,1742695647206,-785.66803801,0.00021841,2]
[356571054,1742695647227,-785.66803801,0.00021841,2]
[356571055,1742695647250,-785.66803801,0.00021841,2]
[356571056,1742695647271,-785.66803801,0.00021841,2]
[356571057,1742695647292,-785.66803801,0.00021841,2]
[356571058,1742695647313,-785.66803801,0.00021841,2]
[356571059,1742695647334,-785.66803801,0.00021841,2]
[356571060,1742695647356,-785.66803801,0.00021841,2]
[356571061,1742695647377,-785.66803801,0.00021841,2]
[356571062,1742695647399,-785.66803801,0.00021841,2]
[356571063,1742695647421,-785.66803801,0.00021841,2]
[356571064,1742695647443,-785.66803801,0.00021841,2]
[356571065,1742695647464,-785.66803801,0.00021841,2]
[356571066,1742695647487,-785.66803801,0.00021841,2]
[356571067,1742695647508,-785.66803801,0.00021841,2]
[356571068,1742695647529,-785.66803801,0.00021841,2]
[356571069,1742695647552,-785.66803801,0.00021841,2]
[356571070,1742695647577,-785.66803801,0.00021841,2]
[356571071,1742695647599,-785.66803801,0.00021841,2]
[356571072,1742695647621,-785.66803801,0.00021841,2]
[356571073,1742695647645,-785.66803801,0.00021841,2]
[356571074,1742695647668,-785.66803801,0.00021841,2]
[356571075,1742695647690,-785.66803801,0.00021841,2]
[356571076,1742695647712,-785.66803801,0.00021841,2]
[356571077,1742695647734,-785.66803801,0.00021841,2]
[356571078,1742695647756,-785.66803801,0.00021841,2]
[356571079,1742695647779,-785.66803801,0.00021841,2]
[356571080,1742695647802,-785.66803801,0.00021841,2]
[356571081,1742695647825,-785.66803801,0.00021841,2]
[356571082,1742695647849,-785.66803801,0.00021841,2]
[356571083,1742695647876,-785.66803801,0.00021841,2]
[356571084,1742695647897,-785.66803801,0.00021841,2]
[356571085,1742695647920,-785.66803801,0.00021841,2]
[356571086,1742695647943,-500.0,0.00021841,2]
[356571087,1742695647966,-6301.60761282,0.00021841,2]
[356571088,1742695647988,-500.0,0.00021841,2]
[356571089,1742695648013,-6301.60761282,0.00021841,2]
[356571090,1742695648035,-500.0,0.00021841,2]
[356571091,1742695648060,-6301.60761282,0.00021841,2]
[356571092,1742695648081,-500.0,0.00021841,2]
[356571093,1742695648105,-6301.60761282,0.00021841,2]
[356571094,1742695648129,-6301.60761282,0.00021841,2]
[356571095,1742695648152,-6301.60761282,0.00021841,2]
[356571096,1742695648175,-6301.60761282,0.00021841,2]
[356571097,1742695648198,-6301.60761282,0.00021841,2]
[356571098,1742695648227,-6301.60761282,0.00021841,2]
[356571099,1742695648249,-6301.60761282,0.00021841,2]
[356571100,1742695648270,-6301.60761282,0.00021841,2]
[356571101,1742695648292,-6301.60761282,0.00021841,2]
[356571102,1742695648315,-6301.60761282,0.00021841,2]
[356571103,1742695648336,-6301.60761282,0.00021841,2]
[356571104,1742695648357,-6301.60761282,0.00021841,2]
[356571105,1742695648379,-6301.60761282,0.00021841,2]
[356571106,1742695648400,-6301.60761282,0.00021841,2]
[356571107,1742695648421,-6301.60761282,0.00021841,2]
[356571108,1742695648442,-6301.60761282,0.00021841,2]
[356571109,1742695648463,-6301.60761282,0.00021841,2]
[356571110,1742695648484,-6301.60761282,0.00021841,2]
[356571111,1742695648505,-6301.60761282,0.00021841,2]
[356571112,1742695648525,-6301.60761282,0.00021841,2]
[356571113,1742695648546,-6301.60761282,0.00021841,2]
[356571114,1742695648570,-6301.60761282,0.00021841,2]
[356571115,1742695648590,-6301.60761282,0.00021841,2]
[356571116,1742695648613,-6301.60761282,0.00021841,2]
[356571117,1742695648635,-6301.60761282,0.00021841,2]
[356571118,1742695648658,-6301.60761282,0.00021841,2]
[356571119,1742695648679,-6301.60761282,0.00021841,2]
[356571120,1742695648701,-6301.60761282,0.00021841,2]
[356571121,1742695648722,-6301.60761282,0.00021841,2]
[356571122,1742695648744,-6301.6076128,0.00021841,2]
[356571123,1742695648765,-6301.6076128,0.00021841,2]
[356571124,1742695648786,-6301.6076128,0.00021841,2]
[356571125,1742695648808,-6301.6076128,0.00021841,2]
[356571126,1742695648828,-6301.6076128,0.00021841,2]
[356571127,1742695648849,-19786.0710418,0.00021842,2]
[356571128,1742695648869,-305.8,0.00021842,3]
[356571129,1742695648889,-67.53946656,0.00021842,3]
[356571130,1742695650094,-85.36053344,0.00021842,3]
[356571131,1742695650116,-458.71,0.00021842,3]
[356571132,1742695650137,-500.0,0.00021851,2]
[356571133,1742695650158,-440.15193548,0.00021851,2]
[356571134,1742695650178,-151.0,0.00021853,2]
[356571135,1742695650198,-258.599076,0.00021853,2]
[356571136,1742695650220,-24598.18944942,0.00021857,2]
[356571137,1742695650240,-622.26897242,0.00021895,2]
[356571138,1742695650259,-500.0,0.000219,2]
[356571139,1742695650279,-500.0,0.00021917,2]
[356571140,1742695650297,-500.0,0.00021917,2]
[356571141,1742695650317,-500.0,0.00021917,2]
[356571142,1742695650336,-500.0,0.00021917,2]
[356571143,1742695650356,-500.0,0.00021917,2]
[356571144,1742695650376,-758.39,0.00021917,2]
[356571145,1742695650396,-509.41789889,0.00021917,2]
[356571146,1742695650415,-500.0,0.00021917,2]
[356571147,1742695650435,-500.0,0.00021917,2]
[356571148,1742695650454,-230.92828939,0.00021917,2]
[356571149,1742695650474,-500.0,0.00021917,2]
[356571150,1742695650494,-500.0,0.00021917,2]
[356571151,1742695650515,-582.01,0.00021917,2]
[356571152,1742695650536,-500.0,0.00021917,2]
[356571153,1742695650560,-500.0,0.00021917,2]
[356571154,1742695650580,-504.93022995,0.00021917,2]
[356571155,1742695650599,-500.0,0.00021917,2]
[356571156,1742695650619,-500.0,0.00021917,2]
[356571157,1742695650639,-500.0,0.00021917,2]
[356571158,1742695650658,-500.0,0.00021917,2]
[356571159,1742695650677,-699.65,0.00021917,2]
[356571160,1742695650697,-523.83812945,0.00021917,2]
[356571161,1742695650716,-500.0,0.00021917,2]
[356571162,1742695650736,-500.0,0.00021917,2]
[356571163,1742695650756,-500.0,0.00021917,2]
[356571164,1742695650775,-500.0,0.00021917,2]
[356571165,1742695650794,-500.0,0.00021917,2]
[356571166,1742695650814,-982.01,0.00021917,2]
[356571167,1742695650833,-500.0,0.00021917,2]
[356571168,1742695650853,-500.0,0.00021917,2]
[356571169,1742695650873,-500.0,0.00021917,2]
[356571170,1742695650894,-500.0,0.00021917,2]
[356571171,1742695650914,-500.0,0.00021917,2]
[356571172,1742695650934,-500.0,0.00021917,2]
[356571173,1742695650954,-500.0,0.00021917,2]
[356571174,1742695650974,-500.0,0.00021917,2]
[356571175,1742695650994,-500.0,0.00021917,2]
[356571176,1742695651015,-618.54,0.00021917,2]
[356571177,1742695651035,-500.0,0.00021917,2]
[356571178,1742695651056,-500.0,0.00021917,2]
[356571179,1742695651076,-500.0,0.00021917,2]
[356571180,1742695651096,-783.95,0.00021917,2]
[356571181,1742695651118,-771.22,0.00021917,2]
[356571182,1742695651138,-200.0,0.00021917,2]
[356571183,1742695651157,-500.0,0.00021917,2]
[356571184,1742695651179,-777.65,0.00021917,2]
[356571185,1742695651198,-500.0,0.00021917,2]
[356571186,1742695651220,-1698.19,0.00021917,2]
[356571187,1742695651242,-500.0,0.00021917,2]
[356571188,1742695651265,-500.0,0.00021917,2]
[356571189,1742695651284,-713.31,0.00021917,2]
[356571190,1742695651306,-761.18,0.00021917,2]
[356571191,1742695651328,-500.0,0.00021917,2]
[356571192,1742695651350,-525.30144231,0.00021917,2]
[356571193,1742695651371,-500.0,0.00021917,2]
[356571194,1742695651391,-500.0,0.00021917,2]
[356571195,1742695651412,-1005.65,0.00021917,2]
[356571196,1742695651435,-500.0,0.00021917,2]
[356571197,1742695651457,-500.0,0.00021917,2]
[356571198,1742695651478,-1069.14,0.00021917,2]
[356571199,1742695651499,-533.06,0.00021917,2]
[356571200,1742695651520,-902.77,0.00021917,2]
[356571201,1742695651540,-783.83,0.00021917,2]
[356571202,1742695651563,-500.0,0.00021917,2]
[356571203,1742695651583,-779.96,0.00021917,2]
[356571204,1742695651604,-760.56,0.00021917,2]
[356571205,1742695651628,-500.0,0.00021917,2]
[356571206,1742695651656,-2930.9,0.00021917,2]
[356571207,1742695651678,-6833.86,0.00021917,2]
[356571208,1742695651699,-3903.67,0.00021917,2]
[356571209,1742695651720,-536.24,0.00021917,2]
[356571210,1742695651741,-500.0,0.00021917,2]
[356571211,1742695651761,-891.36,0.00021917,2]
[356571212,1742695651783,-1907.39,0.00021917,2]
[356571213,1742695651806,-777.47,0.00021917,2]
[356571214,1742695651826,-500.0,0.00021917,2]
[356571215,1742695651847,-2453.36,0.00021917,2]
[356571216,1742695651870,-2491.11819725,0.00021917,2]
[356571218,1742695747119,-152.9,0.00021907,3]
[356571219,1742695747144,-458.7,0.00021907,3]
[356571220,1742695747167,-300.0,0.00021915,2]
[356571221,1742695747189,-783.15406598,0.00021916,2]
[356571222,1742695747211,-500.0,0.00021916,2]
[356571223,1742695747233,-158.10635484,0.00021916,2]
[356571224,1742695747257,-500.0,0.00021916,2]
[356571225,1742695747282,-223.99976335,0.00021916,2]
[356571226,1742695747308,-500.0,0.00021916,2]
[356571227,1742695747332,-500.0,0.00021916,2]
[356571228,1742695747356,-422.02472019,0.00021916,2]
[356571229,1742695747378,-500.0,0.00021916,2]
[356571230,1742695747404,-500.0,0.00021916,2]
[356571231,1742695747430,-500.0,0.00021916,2]
[356571232,1742695747454,-500.0,0.00021916,2]
[356571233,1742695747477,-500.0,0.00021916,2]
[356571234,1742695747500,-500.0,0.00021916,2]
[356571235,1742695747522,-500.0,0.00021916,2]
[356571236,1742695747546,-500.0,0.00021916,2]
[356571237,1742695747569,-500.0,0.00021916,2]
[356571238,1742695747594,-500.0,0.00021916,2]
[356571239,1742695747619,-500.0,0.00021916,2]
[356571240,1742695747644,-500.0,0.00021916,2]
[356571241,1742695747670,-500.0,0.00021916,2]
[356571242,1742695747693,-500.0,0.00021916,2]
[356571243,1742695747718,-500.0,0.00021916,2]
[356571244,1742695747743,-500.0,0.00021916,2]
[356571245,1742695748013,-488.51270913,0.00021916,2]
[356571246,1742695748039,-500.0,0.00021916,2]
[356571247,1742695748063,-500.0,0.00021916,2]
[356571248,1742695748088,-500.0,0.00021916,2]
[356571249,1742695748112,-500.0,0.00021916,2]
[356571250,1742695748137,-500.0,0.00021916,2]
[356571251,1742695748168,-500.0,0.00021916,2]
[356571252,1742695748193,-500.0,0.00021916,2]
[356571253,1742695748218,-500.0,0.00021916,2]
[356571254,1742695748243,-500.0,0.00021916,2]
[356571255,1742695748269,-500.0,0.00021916,2]
[356571256,1742695748294,-500.0,0.00021916,2]
[356571257,1742695748323,-500.0,0.00021916,2]
[356571258,1742695748354,-500.0,0.00021916,2]
[356571259,1742695748400,-500.0,0.00021916,2]
[356571260,1742695748433,-500.0,0.00021916,2]
[356571261,1742695748457,-500.0,0.00021916,2]
[356571262,1742695748481,-500.0,0.00021916,2]
[356571263,1742695748503,-500.0,0.00021916,2]
[356571264,1742695748526,-500.0,0.00021916,2]
[356571265,1742695748550,-500.0,0.00021916,2]
[356571266,1742695748573,-500.0,0.00021916,2]
[356571267,1742695748599,-500.0,0.00021916,2]
[356571268,1742695748620,-500.0,0.00021916,2]
[356571269,1742695748647,-500.0,0.00021916,2]
[356571270,1742695748670,-500.0,0.00021916,2]
[356571271,1742695748705,-500.0,0.00021916,2]
[356571272,1742695748741,-500.0,0.00021916,2]
[356571273,1742695748785,-500.0,0.00021916,2]
[356571274,1742695748820,-500.0,0.00021916,2]
[356571275,1742695748844,-500.0,0.00021916,2]
[356571276,1742695748866,-592.96,0.00021917,2]
[356571277,1742695748889,-500.0,0.00021917,2]
[356571278,1742695748913,-510.10773114,0.00021917,2]
[356571279,1742695748935,-643.62,0.00021917,2]
[356571280,1742695748960,-500.0,0.00021917,2]
[356571281,1742695748983,-500.0,0.00021917,2]
[356571282,1742695749007,-500.0,0.00021917,2]
[356571283,1742695749032,-507.04,0.00021917,2]
[356571284,1742695749059,-500.0,0.00021917,2]
[356571285,1742695749086,-500.0,0.00021917,2]
[356571286,1742695749111,-26728.24,0.00021917,2]
[356571287,1742695749139,-500.0,0.00021917,2]
[356571288,1742695749167,-500.0,0.00021917,2]
[356571289,1742695749195,-6304.7,0.00021917,2]
[356571290,1742695749220,-500.0,0.00021917,2]
[356571291,1742695749245,-500.0,0.00021917,2]
[356571292,1742695749267,-500.0,0.00021917,2]
[356571293,1742695749289,-906.17,0.00021917,2]
[356571294,1742695749310,-510.10857698,0.00021917,2]
[356571295,1742695749332,-500.0,0.00021917,2]
[356571296,1742695749355,-2286.48,0.00021917,2]
[356571297,1742695749378,-1016.16,0.00021917,2]
[356571298,1742695749408,-574.27,0.00021917,2]
[356571299,1742695749434,-901.64,0.00021917,2]
[356571300,1742695749460,-981.57,0.00021917,2]
[356571301,1742695749495,-1030.46,0.00021917,2]
[356571302,1742695749522,-500.0,0.00021917,2]
[356571303,1742695749550,-672.71,0.00021917,2]
[356571304,1742695749576,-605.04,0.00021917,2]
[356571305,1742695749605,-1069.93,0.00021917,2]
[356571306,1742695749630,-500.0,0.00021917,2]
[356571307,1742695749661,-1129.6,0.00021917,2]
[356571308,1742695749686,-500.0,0.00021917,2]
[356571309,1742695749710,-500.0,0.00021917,2]
[356571310,1742695749733,-500.0,0.00021917,2]
[356571311,1742695749757,-594.84,0.00021917,2]
[356571312,1742695749781,-607.01,0.00021917,2]
[356571313,1742695749804,-131542.88127839,0.00021917,2]
[356571314,1742695758098,-6697.24872161,0.00021917,2]
[356571315,1742695758119,-500.0,0.00021917,2]
[356571316,1742695758140,-3042.71501603,0.00021917,2]
[356571317,1742695760089,-2289.14498397,0.00021917,2]
[356571318,1742695760113,-188.69351057,0.00021917,2]
[356571319,1742695760135,-500.0,0.00021917,2]
[356571320,1742695760408,-9818.61,0.00021917,2]
[356571321,1742695760431,-500.0,0.00021917,2]
[356571322,1742695760453,-664.38,0.00021917,2]
[356571323,1742695760474,-500.0,0.00021917,2]
[356571324,1742695760494,-500.0,0.00021917,2]
[356571325,1742695760515,-4824.67,0.00021917,2]
[356571326,1742695760536,-500.0,0.00021917,2]
[356571327,1742695760557,-2399.62,0.00021917,2]
[356571328,1742695760578,-2129.61,0.00021917,2]
[356571329,1742695760604,-500.0,0.00021917,2]
[356571330,1742695760624,-4151.17,0.00021917,2]
[356571331,1742695760645,-500.0,0.00021917,2]
[356571332,1742695760667,-566.53,0.00021917,2]
[356571333,1742695760691,-500.0,0.00021917,2]
[356571334,1742695760712,-1983.47,0.00021917,2]
[356571335,1742695760732,-1052.22,0.00021917,2]
[356571336,1742695760755,-500.0,0.00021917,2]
[356571337,1742695760780,-1065.55,0.00021917,2]
[356571338,1742695760802,-500.0,0.00021917,2]
[356571339,1742695760825,-2028.0,0.00021917,2]
[356571340,1742695760845,-500.0,0.00021917,2]
[356571341,1742695760866,-9320.98,0.00021917,2]
[356571342,1742695760888,-500.0,0.00021917,2]
[356571343,1742695760908,-500.0,0.00021917,2]
[356571344,1742695760929,-500.0,0.00021917,2]
[356571345,1742695760950,-500.0,0.00021917,2]
[356571346,1742695760972,-802.57,0.00021917,2]
[356571347,1742695760993,-502.26,0.00021917,2]
[356571348,1742695761016,-3632.42,0.00021917,2]
[356571349,1742695761039,-508.67,0.00021917,2]
[356571350,1742695761059,-564.34,0.00021917,2]
[356571351,1742695761080,-500.0,0.00021917,2]
[356571352,1742695761099,-1289.17,0.00021917,2]
[356571353,1742695761120,-500.0,0.00021917,2]
[356571354,1742695761139,-646.76,0.00021917,2]
[356571355,1742695761160,-500.0,0.00021917,2]
[356571356,1742695761180,-874.56,0.00021917,2]
[356571357,1742695761200,-8296.87,0.00021917,2]
[356571358,1742695761220,-1013.88,0.00021917,2]
[356571359,1742695761240,-500.0,0.00021917,2]
[356571360,1742695761263,-1286.95,0.00021917,2]
[356571361,1742695761282,-10083.57,0.00021917,2]
[356571362,1742695761302,-500.0,0.00021917,2]
[356571363,1742695761322,-500.0,0.00021917,2]
[356571364,1742695761341,-500.0,0.00021917,2]
[356571365,1742695761361,-635.01,0.00021917,2]
[356571366,1742695761380,-929.22,0.00021917,2]
[356571367,1742695761400,-500.0,0.00021917,2]
[356571368,1742695761419,-500.0,0.00021917,2]
[356571369,1742695761441,-1046.83,0.00021917,2]
[356571370,1742695761463,-500.0,0.00021917,2]
[356571371,1742695761483,-1734.68,0.00021917,2]
[356571372,1742695761506,-745.11,0.00021917,2]
[356571373,1742695761528,-2523.05,0.00021917,2]
[356571374,1742695761548,-500.0,0.00021917,2]
[356571375,1742695761571,-500.0,0.00021917,2]
[356571376,1742695761597,-547.58,0.00021917,2]
[356571377,1742695761619,-500.0,0.00021917,2]
[356571378,1742695761642,-1189.47,0.00021917,2]
[356571379,1742695761663,-906.19,0.00021917,2]
[356571380,1742695761685,-500.0,0.00021917,2]
[356571381,1742695761704,-500.0,0.00021917,2]
[356571382,1742695761723,-1164.76,0.00021917,2]
[356571383,1742695761743,-500.0,0.00021917,2]
[356571384,1742695761764,-2942.2,0.00021917,2]
[356571385,1742695761784,-815.33,0.00021917,2]
[356571386,1742695761804,-500.0,0.00021917,2]
[356571387,1742695761823,-3918.45,0.00021917,2]
[356571388,1742695761843,-1674.24,0.00021917,2]
[356571389,1742695761862,-611.87875252,0.00021917,2]
[356571390,1742695761881,-500.0,0.00021917,2]
[356571391,1742695761901,-500.0,0.00021917,2]
[356571392,1742695761921,-157.79021739,0.00021917,2]
[356571393,1742695761941,-500.0,0.00021917,2]
[356571394,1742695761961,-1039.532626,0.00021917,2]
[356571395,1742695761981,-500.0,0.00021917,2]
[356571396,1742695762000,-2611.4,0.00021917,2]
[356571397,1742695762021,-500.0,0.00021917,2]
[356571398,1742695762041,-749.85,0.00021917,2]
[356571399,1742695762060,-500.0,0.00021917,2]
[356571400,1742695762081,-1039.532626,0.00021917,2]
[356571401,1742695762100,-971.66,0.00021917,2]
[356571402,1742695762121,-1217.54349716,0.00021917,2]
[356571403,1742695769123,-576.28650284,0.00021917,2]
[356571404,1742695769143,-6549.11,0.00021917,2]
[356571405,1742695769162,-4950.72,0.00021917,2]
[356571406,1742695769181,-599.09,0.00021917,2]
[356571407,1742695769201,-500.0,0.00021917,2]
[356571408,1742695769220,-712.87,0.00021917,2]
[356571409,1742695769239,-1144.12,0.00021917,2]
[356571410,1742695769258,-1741.15,0.00021917,2]
[356571411,1742695769276,-511.63381102,0.00021917,2]
[356571412,1742695769295,-2462.66,0.00021917,2]
[356571413,1742695769314,-515.08,0.00021917,2]
[356571414,1742695769333,-551.12,0.00021917,2]
[356571415,1742695769352,-12423.82,0.00021917,2]
[356571416,1742695769371,-706.23,0.00021917,2]
[356571417,1742695769391,-659.1,0.00021917,2]
[356571418,1742695769410,-18196.18,0.00021917,2]
[356571419,1742695769430,-810.26,0.00021917,2]
[356571420,1742695769638,-774.62,0.00021917,2]
[356571421,1742695769658,-3040.93,0.00021917,2]
[356571422,1742695769678,-500.0,0.00021917,2]
[356571423,1742695769697,-500.0,0.00021917,2]
[356571424,1742695769717,-10084.47,0.00021917,2]
[356571425,1742695769736,-981.3,0.00021917,2]
[356571426,1742695769756,-500.0,0.00021917,2]
[356571427,1742695769775,-500.0,0.00021917,2]
[356571428,1742695769794,-500.0,0.00021917,2]
[356571429,1742695769813,-969.92,0.00021917,2]
[356571430,1742695769834,-500.0,0.00021917,2]
[356571431,1742695769856,-500.0,0.00021917,2]
[356571432,1742695769876,-500.0,0.00021917,2]
[356571433,1742695769896,-1683.66,0.00021917,2]
[356571434,1742695769916,-4465.37,0.00021917,2]
[356571435,1742695769936,-1146.57,0.00021917,2]
[356571436,1742695769954,-500.0,0.00021917,2]
[356571437,1742695769976,-500.0,0.00021917,2]
[356571438,1742695769995,-500.0,0.00021917,2]
[356571439,1742695770015,-500.0,0.00021917,2]
[356571440,1742695770035,-500.0,0.00021917,2]
[356571441,1742695770054,-6328.58,0.00021917,2]
[356571442,1742695770074,-500.0,0.00021917,2]
[356571443,1742695770094,-500.0,0.00021917,2]
[356571444,1742695770114,-26829.49,0.00021917,2]
[356571445,1742695770135,-989.34,0.00021917,2]
[356571446,1742695770154,-500.0,0.00021917,2]
[356571447,1742695770175,-500.0,0.00021917,2]
[356571448,1742695770194,-841.57,0.00021917,2]
[356571449,1742695770215,-3879.44035659,0.00021917,2]
[356571450,1742695770240,-26843.41964341,0.00021917,2]
[356571451,1742695770260,-500.0,0.00021917,2]
[356571452,1742695770279,-549.35065023,0.00021917,2]
[356571453,1742695770299,-500.0,0.00021917,2]
[356571454,1742695770318,-135824.37,0.00021917,2]
[356571455,1742695770337,-605.30758852,0.00021918,2]
[356571456,1742695770356,-593.18710636,0.00022191,2]
[356571457,1742695770375,-500.0,0.00022191,2]
[356571458,1742695770394,-500.0,0.00022191,2]
[356571459,1742695770414,-500.0,0.00022191,2]
[356571460,1742695770433,-758.39,0.00022191,2]
[356571461,1742695770453,-500.0,0.00022191,2]
[356571462,1742695770472,-500.0,0.00022191,2]
[356571463,1742695770491,-208.39577871,0.00022191,2]
[356571464,1742695770511,-582.01,0.00022191,2]
[356571465,1742695770529,-500.0,0.00022191,2]
[356571466,1742695770548,-500.0,0.00022191,2]
[356571467,1742695770568,-500.0,0.00022191,2]
[356571468,1742695770590,-500.0,0.00022191,2]
[356571469,1742695770612,-500.0,0.00022191,2]
[356571470,1742695770633,-500.0,0.00022191,2]
[356571471,1742695770654,-699.65,0.00022191,2]
[356571472,1742695770674,-500.0,0.00022191,2]
[356571473,1742695770693,-500.0,0.00022191,2]
[356571474,1742695770712,-500.0,0.00022191,2]
[356571475,1742695770730,-500.0,0.00022191,2]
[356571476,1742695770749,-500.0,0.00022191,2]
[356571477,1742695770768,-982.01,0.00022191,2]
[356571478,1742695770787,-500.0,0.00022191,2]
[356571479,1742695770807,-500.0,0.00022191,2]
[356571480,1742695770826,-500.0,0.00022191,2]
[356571481,1742695770845,-500.0,0.00022191,2]
[356571482,1742695770865,-500.0,0.00022191,2]
[356571483,1742695770884,-500.0,0.00022191,2]
[356571484,1742695770903,-500.0,0.00022191,2]
[356571485,1742695770921,-500.0,0.00022191,2]
[356571486,1742695770940,-618.54,0.00022191,2]
[356571487,1742695770959,-500.0,0.00022191,2]
[356571488,1742695770978,-500.0,0.00022191,2]
[356571489,1742695770998,-783.95,0.00022191,2]
[356571490,1742695771018,-771.22,0.00022191,2]
[356571491,1742695771037,-200.0,0.00022191,2]
[356571492,1742695771058,-777.65,0.00022191,2]
[356571493,1742695771077,-500.0,0.00022191,2]
[356571494,1742695771096,-1698.19,0.00022191,2]
[356571495,1742695771116,-500.0,0.00022191,2]
[356571496,1742695771135,-500.0,0.00022191,2]
[356571497,1742695771156,-713.31,0.00022191,2]
[356571498,1742695771176,-761.18,0.00022191,2]
[356571499,1742695771195,-500.0,0.00022191,2]
[356571500,1742695771214,-500.0,0.00022191,2]
[356571501,1742695771233,-500.0,0.00022191,2]
[356571502,1742695771253,-1005.65,0.00022191,2]
[356571503,1742695771274,-500.0,0.00022191,2]
[356571504,1742695771293,-500.0,0.00022191,2]
[356571505,1742695771312,-1069.14,0.00022191,2]
[356571506,1742695771331,-533.06,0.00022191,2]
[356571507,1742695771351,-783.83,0.00022191,2]
[356571508,1742695771370,-779.96,0.00022191,2]
[356571509,1742695771390,-760.56,0.00022191,2]
[356571510,1742695771409,-527.69059951,0.00022191,2]
[356571511,1742695771429,-891.36,0.00022191,2]
[356571512,1742695771448,-1907.39,0.00022191,2]
[356571513,1742695771468,-777.47,0.00022191,2]
[356571514,1742695771488,-500.0,0.00022191,2]
[356571515,1742695771508,-592.96,0.00022191,2]
[356571516,1742695771527,-500.0,0.00022191,2]
[356571517,1742695771546,-643.62,0.00022191,2]
[356571518,1742695771566,-500.0,0.00022191,2]
[356571519,1742695771584,-500.0,0.00022191,2]
[356571520,1742695771607,-507.04,0.00022191,2]
[356571521,1742695771626,-500.0,0.00022191,2]
[356571522,1742695771646,-500.0,0.00022191,2]
[356571523,1742695771666,-500.0,0.00022191,2]
[356571524,1742695771685,-500.0,0.00022191,2]
[356571525,1742695771706,-500.0,0.00022191,2]
[356571526,1742695771726,-500.0,0.00022191,2]
[356571527,1742695771747,-906.17,0.00022191,2]
[356571528,1742695771771,-1016.16,0.00022191,2]
[356571529,1742695771792,-574.27,0.00022191,2]
[356571530,1742695771811,-1030.46,0.00022191,2]
[356571531,1742695771830,-500.0,0.00022191,2]
[356571532,1742695771849,-151.0,0.00022191,7]
[356571533,1742695771869,-672.71,0.00022191,2]
[356571534,1742695771889,-605.04,0.00022191,2]
[356571535,1742695771910,-1069.93,0.00022191,2]
[356571536,1742695771934,-1129.6,0.00022191,2]
[356571537,1742695771962,-500.0,0.00022191,2]
[356571538,1742695771988,-500.0,0.00022191,2]
[356571539,1742695772010,-594.84,0.00022191,2]
[356571540,1742695772035,-124.59096664,0.00022191,2]
[356571541,1742695774151,-908.78,0.00021917,2]
[356571542,1742695774175,-500.0,0.00021917,2]